bitfinex/quotes_ETHUSD_20250520
["timestamp","ask_amount","ask_price","bid_price","bid_amount"]
[1747719464986,0.02,2568.9,2568.8,19.40364]
[1747719465696,0.02,2568.9,2568.8,20.15804]
[1747719466021,0.02,2568.9,2568.8,20.52377989]
[1747719466204,0.02,2568.9,2568.8,22.05754604]
[1747719468786,0.02,2568.9,2568.8,35.99154604]
[1747719468988,0.02,2568.9,2568.8,22.05754604]
[1747719469184,3.91271672,2568.9,2568.8,24.58690604]
[1747719470584,0.02,2568.9,2568.2,1.21182566]
[1747719470771,3.89362613,2568.3,2568.2,9.30882566]
[1747719471105,3.89349855,2568.4,2568.3,8.0]
[1747719471406,3.89347453,2568.4,2568.2,9.30882566]
[1747719471705,3.89342853,2568.5,2568.3,8.93088257]
[1747719471906,3.89323256,2568.6,2568.3,8.93088257]
[1747719472075,3.8933449,2568.5,2568.3,8.93088257]
[1747719472288,3.8933449,2568.5,2568.4,0.32502048]
[1747719472706,3.8933449,2568.5,2568.4,14.25702048]
[1747719472905,3.8933449,2568.5,2568.4,15.77581079]
[1747719473800,3.89320791,2568.6,2568.4,22.71737379]
[1747719474023,3.89320791,2568.6,2568.4,15.77581079]
[1747719474222,0.02,2568.9,2568.4,15.77581079]
[1747719474401,3.89327649,2568.6,2568.4,15.77581079]
[1747719474599,4.68093933,2567.5,2566.3,0.19351075]
[1747719474800,4.68093933,2567.5,2566.1,0.02]
[1747719474801,3.8968124,2566.2,2566.1,0.02]
[1747719476045,3.8968124,2566.2,2566.1,8.42]
[1747719476229,3.8968124,2566.2,2566.1,10.9428]
[1747719477888,4.22209948,2566.2,2566.1,10.9428]
[1747719478550,0.32528708,2566.2,2566.1,62.918574]
[1747719478728,0.32528708,2566.2,2566.1,45.168775]
[1747719479026,0.32528708,2566.2,2566.1,45.978575]
[1747719479329,0.32528708,2566.2,2566.1,40.676885]
[1747719480405,0.32528708,2566.2,2566.1,44.57384926]
[1747719481136,0.32528708,2566.2,2566.1,40.676885]
[1747719481340,0.32528708,2566.2,2566.1,31.86515]
[1747719481528,0.32528708,2566.2,2566.1,28.87555]
[1747719482210,3.89586706,2566.9,2566.3,0.55]
[1747719482415,3.89599484,2566.8,2566.4,0.855]
[1747719482816,3.8960648,2566.7,2566.4,0.855]
[1747719483235,3.89533665,2567.2,2566.4,1.405]
[1747719483236,3.8963569,2566.5,2566.4,1.405]
[1747719483438,3.8963569,2566.5,2566.4,14.906336]
[1747719483644,3.8963569,2566.5,2566.4,16.403]
[1747719483942,3.8963569,2566.5,2566.4,16.77304138]
[1747719484707,3.89626005,2566.6,2566.4,24.39313338]
[1747719485008,3.89626005,2566.6,2566.4,16.77304138]
[1747719485919,3.89626005,2566.6,2566.5,8.77304138]
[1747719486845,0.7934,2566.9,2566.5,8.77304138]
[1747719486846,3.8958184,2566.9,2566.5,8.77304138]
[1747719487014,3.89564991,2567.0,2566.6,8.55]
[1747719487825,3.89564991,2567.0,2566.9,0.46085738]
[1747719488437,3.89564991,2567.0,2566.9,8.86485738]
[1747719488938,3.89564991,2567.0,2566.9,0.46085738]
[1747719489119,4.67476043,2567.0,2566.9,8.86485738]
[1747719489440,4.67476043,2567.0,2566.9,9.23389876]
[1747719489639,3.89564991,2567.0,2566.9,9.23389876]
[1747719491142,3.89564991,2567.0,2566.9,8.77304138]
[1747719491718,4.69874991,2567.0,2566.9,0.36904138]
[1747719491917,4.69874991,2567.0,2566.9,8.77304138]
[1747719492323,3.89564991,2567.0,2566.9,8.77304138]
[1747719492724,3.89564991,2567.0,2566.9,8.404]
[1747719494841,3.89564991,2567.0,2566.4,8.405]
[1747719494842,3.8963569,2566.5,2566.4,8.405]
[1747719495820,3.89650872,2566.4,2566.3,0.46085738]
[1747719496020,4.66970872,2566.4,2566.3,8.86585738]
[1747719496454,4.66970872,2566.4,2566.3,0.46085738]
[1747719497626,3.8968124,2566.2,2566.1,0.02]
[1747719497848,8.66354585,2566.2,2566.1,0.02]
[1747719499855,18.92354585,2566.2,2566.1,0.02]
[1747719500155,15.76346061,2566.2,2566.1,0.02]
[1747719500653,26.92354585,2566.2,2566.1,0.02]
[1747719504161,29.92354585,2566.2,2566.1,0.02]
[1747719506430,30.47354585,2566.2,2566.1,0.02]
[1747719507364,26.92354585,2566.2,2566.1,0.02]
[1747719509241,29.92354585,2566.2,2566.1,0.02]
[1747719510877,30.47354585,2566.2,2566.1,0.02]
[1747719511676,30.44103295,2566.2,2566.1,0.02]
[1747719512258,3.89833151,2565.2,2565.1,8.291]
[1747719515259,3.89833151,2565.2,2565.1,8.66131819]
[1747719518297,3.89833151,2565.2,2565.1,10.29185001]
[1747719519001,3.89794722,2565.5,2565.2,8.0]
[1747719519199,3.89777795,2565.6,2565.3,0.7749]
[1747719519848,10.26,2566.2,2565.3,0.7749]
[1747719520052,3.89751949,2565.8,2565.5,0.7725]
[1747719520253,3.89751949,2565.8,2565.6,25.1]
[1747719520885,3.89751949,2565.8,2565.7,0.9847947]
[1747719521119,3.8963569,2566.5,2565.8,0.7751]
[1747719521405,10.26,2566.6,2565.8,0.7751]
[1747719521406,3.89722043,2566.0,2565.9,0.37031819]
[1747719521564,3.89722043,2566.0,2565.9,1.34630766]
[1747719522461,2.96262231,2566.0,2565.9,1.34630766]
[1747719523664,2.96262231,2566.0,2565.9,0.37031819]
[1747719525510,2.96262231,2566.0,2565.9,8.64131819]
[1747719528410,2.96262231,2566.0,2565.9,9.26119331]
[1747719531180,2.96262231,2566.0,2565.9,9.10608156]
[1747719533639,2.96262231,2566.0,2565.9,0.83508156]
[1747719533788,2.96262231,2566.0,2565.9,9.10508156]
[1747719534726,2.96262231,2566.0,2565.9,8.64031819]
[1747719537221,5.86262231,2566.0,2565.9,8.64031819]
[1747719538122,5.86262231,2566.0,2565.9,8.39831819]
[1747719538596,2.9,2566.0,2565.9,30.01419901]
[1747719538795,2.9,2566.0,2565.9,31.09964779]
[1747719539008,2.9,2566.0,2565.9,30.49182701]
[1747719539323,2.9,2566.0,2565.9,29.96955001]
[1747719539937,2.9,2566.0,2565.9,18.60275001]
[1747719540125,1.96556986,2566.0,2565.9,18.60275001]
[1747719540418,1.96556986,2566.0,2565.9,31.96456901]
[1747719540600,1.96556986,2566.0,2565.9,35.86183702]
[1747719540801,1.96056986,2566.0,2565.9,35.86183702]
[1747719541639,4.68525527,2567.4,2566.4,1.3187]
[1747719541937,0.02,2567.9,2567.2,0.55]
[1747719542235,0.02,2567.9,2567.8,0.55]
[1747719542544,0.02,2567.9,2567.8,45.89374829]
[1747719542844,0.02,2567.9,2567.8,44.12256052]
[1747719543302,0.02,2568.9,2568.3,0.55]
[1747719543523,0.02,2568.9,2568.5,0.55]
[1747719543700,3.91284412,2568.9,2568.6,0.7509]
[1747719544239,3.89292191,2568.8,2568.6,0.7509]
[1747719544430,3.89292191,2568.8,2568.6,1.62839]
[1747719544627,0.02,2568.9,2568.6,1.62839]
[1747719544628,3.89301981,2568.7,2568.6,1.62839]
[1747719544942,3.89290056,2568.8,2568.6,6.406922]
[1747719545107,0.02,2568.9,2568.6,9.62839]
[1747719545108,3.89301981,2568.7,2568.6,9.62839]
[1747719545305,3.89301981,2568.7,2568.6,8.7509]
[1747719545627,3.89301981,2568.7,2568.6,22.6159]
[1747719546359,3.89301981,2568.7,2568.6,14.6159]
[1747719546564,3.89301981,2568.7,2568.6,0.7509]
[1747719546760,3.89301981,2568.7,2568.6,8.7759]
[1747719547467,3.89332295,2568.5,2568.4,25.28844395]
[1747719547652,3.89332295,2568.5,2568.4,45.28344195]
[1747719548259,0.02,2568.9,2568.5,8.55]
[1747719548460,0.02,2568.9,2568.7,0.55]
[1747719548926,3.91275704,2568.9,2568.7,0.55]
[1747719549122,3.91275704,2568.9,2568.8,43.975774]
[1747719549123,0.02,2568.9,2568.8,43.975774]
[1747719549321,0.02,2568.9,2568.8,53.88553326]
[1747719549555,0.02,2568.9,2568.8,58.15587267]
[1747719549753,0.02,2568.9,2568.8,54.26300441]
[1747719549963,0.02,2568.9,2568.8,58.15587267]
[1747719550448,0.02,2568.9,2568.8,72.01487267]
[1747719550959,4.91121108,2569.9,2569.5,0.55]
[1747719551163,1.02,2569.9,2569.8,4.44135341]
[1747719551381,1.02,2569.9,2569.8,66.10685664]
[1747719551581,1.02,2569.9,2569.8,74.10685664]
[1747719551749,1.02,2569.9,2569.8,88.9898701]
[1747719552077,1.02,2569.9,2569.8,45.0140961]
[1747719552380,0.02,2570.9,2570.3,0.55]
[1747719552680,3.89040085,2570.5,2570.4,8.572]
[1747719552881,3.89040085,2570.5,2570.4,19.442479]
[1747719553081,3.89105058,2570.0,2569.9,0.7919]
[1747719553378,3.89105058,2570.0,2569.9,8.8109]
[1747719553548,3.89105058,2570.0,2569.9,24.991201]
[1747719554049,3.89120199,2569.9,2569.8,0.36797653]
[1747719554244,3.89120199,2569.9,2569.8,13.854]
[1747719554947,3.89120199,2569.9,2569.8,25.981608]
[1747719555485,3.89120199,2569.9,2569.8,18.021608]
[1747719555647,3.89120199,2569.9,2569.8,4.167608]
[1747719555848,3.89135341,2569.8,2569.7,8.55]
[1747719556048,3.89135341,2569.8,2569.7,22.403]
[1747719556390,3.89135341,2569.8,2569.7,31.837808]
[1747719557089,3.89135341,2569.8,2569.7,29.141616]
[1747719558362,3.89135341,2569.8,2569.7,28.719738]
[1747719559075,3.89135341,2569.8,2569.7,26.830736]
[1747719559278,3.89135341,2569.8,2569.7,21.853]
[1747719559674,3.89135341,2569.8,2569.7,8.0]
[1747719559876,0.77825625,2569.8,2569.2,0.45688817]
[1747719560078,3.89139891,2569.8,2569.7,16.801]
[1747719562390,3.89139891,2569.8,2569.7,24.817]
[1747719564364,4.68019891,2569.8,2569.7,24.817]
[1747719564995,4.68019891,2569.8,2569.2,0.45688817]
[1747719564996,3.89211069,2569.3,2569.2,0.45688817]
[1747719565206,4.67051961,2569.3,2569.2,8.47288817]
[1747719565361,3.89211069,2569.3,2569.2,8.47288817]
[1747719565798,3.89211069,2569.3,2569.2,8.016]
[1747719567986,3.89211069,2569.3,2569.2,16.016]
[1747719568797,3.89211069,2569.3,2569.2,16.38461066]
[1747719569199,3.89211069,2569.3,2569.2,8.37661066]
[1747719570229,3.89211069,2569.3,2569.2,0.36861066]
[1747719570426,3.89211069,2569.3,2569.2,8.37661066]
[1747719571495,3.89150484,2569.7,2569.2,8.37661066]
[1747719571696,3.89211069,2569.3,2569.2,8.37661066]
[1747719572225,3.89211069,2569.3,2569.2,0.36861066]
[1747719572541,2.958663,2569.3,2569.2,8.37661066]
[1747719574136,2.958663,2569.3,2569.2,0.36861066]
[1747719574347,2.958663,2569.3,2569.2,8.37761066]
[1747719574548,4.44912731,2569.3,2569.2,8.37761066]
[1747719575747,15.56867524,2569.3,2569.2,0.36861066]
[1747719576249,3.89241368,2569.1,2569.0,8.009]
[1747719576553,4.6818652,2569.0,2568.9,16.8]
[1747719576739,7.80141313,2569.0,2568.9,16.8]
[1747719576938,9.36002393,2569.0,2568.9,16.8]
[1747719577136,6.240476,2569.0,2568.9,16.8]
[1747719577638,3.8925652,2569.0,2568.9,16.8]
[1747719577845,3.89180774,2569.5,2568.9,16.8]
[1747719578007,3.8925652,2569.0,2568.9,16.8]
[1747719578542,3.8925652,2569.0,2568.9,17.17049504]
[1747719579843,3.8925652,2569.0,2568.9,25.17949504]
[1747719585470,3.8925652,2569.0,2568.9,27.75919145]
[1747719588029,3.8925652,2569.0,2568.9,35.75919145]
[1747719588366,2.95909607,2569.0,2568.9,35.75919145]
[1747719597931,0.7778,2569.6,2568.9,35.75919145]
[1747719598136,3.89120835,2569.9,2569.0,0.7743]
[1747719598137,3.89180774,2569.5,2569.0,0.7743]
[1747719598371,3.89241368,2569.1,2569.0,1.14479504]
[1747719598959,3.89232987,2569.2,2569.0,1.14479504]
[1747719599564,3.8921679,2569.3,2569.0,1.14479504]
[1747719599872,3.89226218,2569.2,2569.1,0.37049504]
[1747719600075,3.89226218,2569.2,2569.1,4.27285792]
[1747719600792,3.89162249,2569.7,2569.2,8.55]
[1747719600940,4.71647247,2570.4,2569.4,8.55]
[1747719601143,3.89144202,2569.8,2569.6,8.0]
[1747719601454,3.89144202,2569.8,2569.7,5.339404]
[1747719601867,3.89144202,2569.8,2569.7,4.957704]
[1747719602238,3.89150484,2569.7,2569.6,8.62012461]
[1747719602666,3.89150484,2569.7,2569.6,8.99061965]
[1747719603578,3.89139155,2569.8,2569.6,21.33623865]
[1747719603776,3.89150484,2569.7,2569.6,8.99061965]
[1747719604957,3.89150484,2569.7,2569.6,0.99061965]
[1747719605145,3.89150484,2569.7,2569.6,22.67161965]
[1747719605338,3.89150484,2569.7,2569.6,14.67161965]
[1747719605653,4.75028115,2569.7,2569.6,8.83861965]
[1747719606177,5.57508115,2569.7,2569.6,0.99061965]
[1747719606415,8.69217311,2569.7,2569.6,0.99061965]
[1747719606689,8.69217311,2569.7,2569.6,0.62012461]
[1747719607946,3.89195921,2569.4,2569.3,7.848]
[1747719608987,4.67033769,2569.4,2569.3,8.21992206]
[1747719609346,5.47323769,2569.4,2569.3,8.21992206]
[1747719609775,4.69485921,2569.4,2569.3,8.21992206]
[1747719611765,22.95485921,2569.4,2569.3,0.19271246]
[1747719612297,4.71821368,2569.1,2569.0,0.46490368]
[1747719612670,3.89241368,2569.1,2569.0,0.46490368]
[1747719613711,5.06009432,2569.1,2569.0,0.46490368]
[1747719613924,5.06009432,2569.1,2568.8,7.848]
[1747719613925,3.89271672,2568.9,2568.8,7.848]
[1747719616416,3.89286826,2568.8,2568.7,0.46490368]
[1747719616823,3.89347453,2568.4,2568.3,0.46490368]
[1747719617023,3.89347453,2568.4,2568.3,8.31390368]
[1747719617227,3.89347453,2568.4,2568.3,12.21626656]
[1747719620223,3.89347453,2568.4,2568.3,11.75136288]
[1747719620449,3.89334321,2568.5,2568.3,11.75136288]
[1747719620735,3.89229933,2569.2,2568.5,0.7644]
[1747719620888,3.89229933,2569.2,2568.5,3.39532979]
[1747719621088,3.89300549,2568.8,2568.5,0.7644]
[1747719621342,14.15145088,2569.8,2568.6,0.55]
[1747719621551,3.89245218,2569.1,2568.9,0.7703]
[1747719621845,3.89225593,2569.3,2569.0,13.685]
[1747719622037,10.26,2569.8,2569.1,18.25053]
[1747719622233,3.89211069,2569.3,2569.2,0.8023]
[1747719622636,3.89183246,2569.5,2569.2,33.288093]
[1747719622808,3.89183246,2569.5,2569.2,8.8023]
[1747719623246,3.89183246,2569.5,2569.4,0.46400499]
[1747719623451,3.89183246,2569.5,2569.4,14.14900499]
[1747719623949,3.89183246,2569.5,2569.4,16.50614795]
[1747719624651,3.89183246,2569.5,2569.4,16.87726499]
[1747719626557,3.89167845,2569.6,2569.4,16.87726499]
[1747719627229,3.89167845,2569.6,2569.5,0.37111704]
[1747719628646,3.89167845,2569.6,2569.5,0.83512203]
[1747719628820,3.89167845,2569.6,2569.5,1.78140012]
[1747719629018,3.89167845,2569.6,2569.5,9.78140012]
[1747719629219,3.89165628,2569.6,2569.5,9.78140012]
[1747719630655,4.64555628,2569.6,2569.5,0.83512203]
[1747719631730,3.89226218,2569.2,2569.1,24.614]
[1747719633957,4.67886218,2569.2,2569.1,24.614]
[1747719637257,3.89226218,2569.2,2569.1,24.614]
[1747719637776,3.89226218,2569.2,2569.1,24.98532207]
[1747719638536,4.74859137,2569.2,2569.1,17.17632207]
[1747719638737,15.78779137,2569.2,2569.1,17.17632207]
[1747719639547,15.78779137,2569.2,2569.1,16.805]
[1747719639752,18.78779137,2569.2,2569.1,16.805]
[1747719639955,26.78779137,2569.2,2569.1,16.805]
[1747719642397,14.93146218,2569.2,2569.1,16.805]
[1747719644270,3.89347453,2568.4,2568.3,17.26900499]
[1747719644470,3.89347453,2568.4,2568.3,25.08000499]
[1747719644694,3.89347453,2568.4,2568.3,24.98719873]
[1747719645971,3.89347453,2568.4,2568.3,17.17619873]
[1747719646171,3.89347453,2568.4,2568.3,24.98819873]
[1747719647589,5.49375634,2568.4,2568.3,24.98819873]
[1747719648510,16.6108483,2568.4,2568.3,17.17619873]
[1747719648686,16.6108483,2568.4,2568.3,16.805]
[1747719648902,3.89377774,2568.2,2568.1,7.832]
[1747719649106,6.33360494,2568.2,2568.1,0.02]
[1747719649294,7.12020494,2568.2,2568.1,0.02]
[1747719649596,25.77043935,2568.2,2568.1,0.02]
[1747719651994,26.32043935,2568.2,2568.1,0.02]
[1747719652312,4.70739448,2567.2,2567.1,7.833]
[1747719652508,5.56764981,2567.2,2567.1,7.833]
[1747719652890,5.56764981,2567.2,2567.1,0.02]
[1747719653089,8.68474177,2567.2,2567.1,0.02]
[1747719655209,11.68474177,2567.2,2567.1,0.02]
[1747719655589,21.94474177,2567.2,2567.1,0.02]
[1747719655989,18.82764981,2567.2,2567.1,0.02]
[1747719659218,15.82764981,2567.2,2567.1,0.02]
[1747719659692,18.94474177,2567.2,2567.1,0.02]
[1747719660912,26.94474177,2567.2,2567.1,0.02]
[1747719661215,30.43524177,2567.2,2567.1,0.02]
[1747719662089,4.6703124,2566.2,2566.1,0.02]
[1747719663421,14.9303124,2566.2,2566.1,0.02]
[1747719663787,22.9303124,2566.2,2566.1,0.02]
[1747719664317,23.4803124,2566.2,2566.1,0.02]
[1747719665020,26.59740436,2566.2,2566.1,0.02]
[1747719665227,27.82752448,2566.2,2566.1,0.02]
[1747719665538,27.27752448,2566.2,2566.1,0.02]
[1747719666107,27.16043252,2566.2,2566.1,0.02]
[1747719666287,17.1568124,2566.2,2566.1,0.02]
[1747719669220,17.1568124,2566.2,2565.1,8.02]
[1747719669221,3.89833151,2565.2,2565.1,0.48400499]
[1747719671108,3.89833151,2565.2,2565.1,0.02]
[1747719671308,3.89833151,2565.2,2565.1,7.822]
[1747719671512,8.5677765,2565.2,2565.1,0.02]
[1747719671944,5.45068454,2565.2,2565.1,0.02]
[1747719672870,13.45068454,2565.2,2565.1,0.02]
[1747719673668,16.45068454,2565.2,2565.1,0.02]
[1747719674034,13.45068454,2565.2,2565.1,0.02]
[1747719676772,23.71068454,2565.2,2565.1,0.02]
[1747719678646,26.71068454,2565.2,2565.1,0.02]
[1747719679587,27.26068454,2565.2,2565.1,0.02]
[1747719683797,16.39394376,2564.2,2564.1,0.02]
[1747719683969,15.84394376,2564.2,2564.1,0.02]
[1747719684465,12.7268518,2564.2,2564.1,0.02]
[1747719684671,15.84394376,2564.2,2564.1,0.02]
[1747719685096,11.8998518,2564.2,2564.1,0.02]
[1747719685294,12.76010713,2564.2,2564.1,0.02]
[1747719685474,13.51550713,2564.2,2564.1,0.02]
[1747719687014,13.90693027,2564.2,2564.1,0.02]
[1747719687808,13.15153027,2564.2,2564.1,0.02]
[1747719688484,13.94353027,2564.2,2564.1,0.02]
[1747719689691,4.29127494,2564.2,2564.1,0.02]
[1747719689985,3.8998518,2564.2,2564.1,0.8526]
[1747719690993,3.8998518,2564.2,2564.1,1.22296433]
[1747719691707,3.8998518,2564.2,2564.1,9.17796433]
[1747719692080,59.1524588,2564.2,2564.1,9.17796433]
[1747719693807,59.1524588,2564.2,2564.1,9.30956126]
[1747719694103,59.1524588,2564.2,2564.1,10.10536126]
[1747719697949,59.1524588,2564.2,2564.1,1.18616433]
[1747719698087,59.1524588,2564.2,2564.1,9.14116433]
[1747719699620,58.2171731,2564.2,2564.1,9.14116433]
[1747719701936,58.2171731,2564.2,2564.1,20.78563333]
[1747719701937,55.252607,2564.2,2564.1,20.78563333]
[1747719702238,59.1524588,2564.2,2564.1,17.06572766]
[1747719703337,57.74956895,2564.2,2564.1,17.06572766]
[1747719703516,57.74956895,2564.2,2564.1,17.06372766]
[1747719704604,57.74956895,2564.2,2564.1,3.26472766]
[1747719704936,57.74956895,2564.2,2564.1,14.98516433]
[1747719707214,57.74956895,2564.2,2564.1,1.18616433]
[1747719707439,57.74956895,2564.2,2564.1,14.98516433]
[1747719709871,57.74956895,2564.2,2564.1,9.14016433]
[1747719710047,57.74956895,2564.2,2564.1,14.98516433]
[1747719713653,57.74956895,2564.2,2564.1,15.45055376]
[1747719715814,57.74956895,2564.2,2564.1,0.01080159]
[1747719715815,65.52462379,2564.2,2564.1,0.01080159]
[1747719716021,70.40753183,2564.2,2564.1,0.01080159]
[1747719716361,57.74956895,2564.2,2564.1,0.01080159]
[1747719716969,57.74956895,2564.2,2564.1,6.67760159]
[1747719717282,57.74956895,2564.2,2564.1,0.83260159]
[1747719717896,57.74956895,2564.2,2564.1,14.63160159]
[1747719718062,53.84971715,2564.2,2564.1,39.18498427]
[1747719718261,53.84971715,2564.2,2564.1,36.73018815]
[1747719718563,53.84971715,2564.2,2564.1,40.63019205]
[1747719718962,53.84971715,2564.2,2564.1,36.73018815]
[1747719719697,52.91463639,2564.2,2564.1,27.69373815]
[1747719719897,51.51201527,2564.2,2564.1,50.49746778]
[1747719720198,51.51201527,2564.2,2564.1,46.59746388]
[1747719720407,51.51201527,2564.2,2564.1,50.21746778]
[1747719721862,51.51201527,2564.2,2564.1,36.86985388]
[1747719722095,51.51201527,2564.2,2564.1,42.24055388]
[1747719724611,51.51201527,2564.2,2564.1,36.39555388]
[1747719724808,51.51201527,2564.2,2564.1,34.70792588]
[1747719725006,55.41186707,2564.2,2564.1,20.35992588]
[1747719725187,55.41186707,2564.2,2564.1,8.7298]
[1747719725398,55.41186707,2564.2,2564.1,14.5738]
[1747719725597,55.41186707,2564.2,2564.1,22.5738]
[1747719725980,51.51201527,2564.2,2564.1,22.5738]
[1747719726487,51.51201527,2564.2,2564.1,44.356511]
[1747719726692,51.51201527,2564.2,2564.1,45.15911188]
[1747719726891,51.51201527,2564.2,2564.1,26.47616288]
[1747719727702,55.41186707,2564.2,2564.1,12.72416288]
[1747719727905,55.41186707,2564.2,2564.1,22.5738]
[1747719728870,55.41186707,2564.2,2564.1,23.19508396]
[1747719730115,55.41186707,2564.2,2564.1,17.35108396]
[1747719730269,55.41186707,2564.2,2564.1,9.44308396]
[1747719730612,55.41186707,2564.2,2564.1,23.19608396]
[1747719730911,55.41186707,2564.2,2564.1,3.76269236]
[1747719731069,55.41186707,2564.2,2564.1,15.19608396]
[1747719731471,55.41186707,2564.2,2564.1,14.37428396]
[1747719731966,51.51201527,2564.2,2564.1,0.62128396]
[1747719732321,51.51201527,2564.2,2564.1,24.81304496]
[1747719732496,51.51201527,2564.2,2564.1,25.46837696]
[1747719732685,51.51201527,2564.2,2564.1,27.64295972]
[1747719732906,51.51201527,2564.2,2564.1,27.06149572]
[1747719733303,55.41186707,2564.2,2564.1,22.53243972]
[1747719733482,55.41186707,2564.2,2564.1,19.73643972]
[1747719733785,55.41186707,2564.2,2564.1,17.31114972]
[1747719733983,55.41186707,2564.2,2564.1,14.37428396]
[1747719734700,51.51201527,2564.2,2564.1,35.93485696]
[1747719734905,51.51201527,2564.2,2564.1,47.44107696]
[1747719735085,51.51201527,2564.2,2564.1,46.819793]
[1747719735289,51.51201527,2564.2,2564.1,50.7197969]
[1747719735522,51.51201527,2564.2,2564.1,54.62215978]
[1747719735692,51.51201527,2564.2,2564.1,50.72215588]
[1747719736104,50.57693579,2564.2,2564.1,50.72215588]
[1747719736615,50.57693579,2564.2,2564.1,38.06201088]
[1747719736797,49.17431663,2564.2,2564.1,38.06201088]
[1747719737676,49.17431663,2564.2,2564.1,27.01236288]
[1747719737875,49.17431663,2564.2,2564.1,54.31277388]
[1747719738127,49.17431663,2564.2,2564.1,52.77357388]
[1747719738284,49.17431663,2564.2,2564.1,50.93811288]
[1747719738784,49.17431663,2564.2,2564.1,54.83811678]
[1747719743430,48.18416146,2564.2,2564.1,54.83811678]
[1747719745739,46.31425282,2564.2,2564.1,54.83811678]
[1747719746032,46.31425282,2564.2,2564.1,56.07133858]
[1747719746329,46.31425282,2564.2,2564.1,70.57133858]
[1747719746900,46.18425282,2564.2,2564.1,70.57133858]
[1747719747601,44.78187462,2564.2,2564.1,70.57133858]
[1747719747808,44.61187462,2564.2,2564.1,69.33811678]
[1747719748221,44.61187462,2564.2,2564.1,69.33711678]
[1747719749045,44.61187462,2564.2,2564.1,28.22610588]
[1747719749204,44.61187462,2564.2,2564.1,42.07010588]
[1747719749413,44.61187462,2564.2,2564.1,10.382044]
[1747719749614,44.61187462,2564.2,2564.1,21.757513]
[1747719749812,44.61187462,2564.2,2564.1,30.307513]
[1747719750045,44.61187462,2564.2,2564.1,29.757513]
[1747719750248,44.61187462,2564.2,2564.1,30.307513]
[1747719752151,44.61187462,2564.2,2564.1,30.164513]
[1747719752515,43.67675035,2564.2,2564.1,30.164513]
[1747719752954,43.67675035,2564.2,2564.1,19.96299424]
[1747719753128,43.67675035,2564.2,2564.1,33.57099424]
[1747719753823,43.67675035,2564.2,2564.1,32.76399424]
[1747719755746,43.67675035,2564.2,2564.1,25.56448124]
[1747719755949,43.67675035,2564.2,2564.1,29.25751924]
[1747719756268,43.67675035,2564.2,2564.1,40.91322924]
[1747719756655,43.67675035,2564.2,2564.1,27.30522924]
[1747719756844,43.67675035,2564.2,2564.1,40.91322924]
[1747719757565,43.67675035,2564.2,2564.1,26.54576424]
[1747719757940,43.67675035,2564.2,2564.1,40.15376424]
[1747719758256,43.67675035,2564.2,2564.1,26.54576424]
[1747719758456,43.67675035,2564.2,2564.1,21.08990624]
[1747719758661,43.67675035,2564.2,2564.1,19.91587624]
[1747719759272,43.67675035,2564.2,2564.1,33.52387624]
[1747719760761,43.67675035,2564.2,2564.1,19.91587624]
[1747719761370,47.57660215,2564.2,2564.1,18.874217]
[1747719761554,47.57660215,2564.2,2564.1,24.718217]
[1747719762068,3.90016641,2564.0,2563.8,0.55]
[1747719762254,3.90016641,2564.0,2563.9,22.158]
[1747719762459,3.90016641,2564.0,2563.9,32.222182]
[1747719762668,3.90016641,2564.0,2563.9,31.852265]
[1747719762974,3.90007228,2564.1,2564.0,8.0]
[1747719763175,3.90007228,2564.1,2564.0,13.884921]
[1747719763356,3.90007228,2564.1,2564.0,26.066921]
[1747719763752,3.90007228,2564.1,2564.0,12.458921]
[1747719764066,3.90007228,2564.1,2564.0,26.066921]
[1747719764374,3.90007228,2564.1,2564.0,21.608]
[1747719764978,3.90007228,2564.1,2564.0,8.0]
[1747719765179,3.90007228,2564.1,2564.0,21.608]
[1747719765478,43.67675035,2564.2,2564.1,0.55]
[1747719765781,43.67675035,2564.2,2564.1,26.628958]
[1747719765951,43.67675035,2564.2,2564.1,25.877258]
[1747719766569,43.67675035,2564.2,2564.1,23.576953]
[1747719767774,43.67675035,2564.2,2564.1,23.94991535]
[1747719767978,43.67675035,2564.2,2564.1,26.22807223]
[1747719768179,42.74162464,2564.2,2564.1,26.22807223]
[1747719770284,42.74162464,2564.2,2564.1,18.22807223]
[1747719770750,42.74162464,2564.2,2564.1,17.99322223]
[1747719771575,46.64147644,2564.2,2564.1,25.46350123]
[1747719771775,46.64147644,2564.2,2564.1,31.77044223]
[1747719772768,46.64147644,2564.2,2564.1,18.16244223]
[1747719772965,46.64147644,2564.2,2564.1,27.86807935]
[1747719774388,46.64147644,2564.2,2564.1,22.53096235]
[1747719774990,46.64147644,2564.2,2564.1,8.37296235]
[1747719775157,46.64147644,2564.2,2564.1,21.98096235]
[1747719775684,46.64147644,2564.2,2564.1,8.37296235]
[1747719775865,46.64147644,2564.2,2564.1,21.98096235]
[1747719779192,47.45537644,2564.2,2564.1,21.98096235]
[1747719781902,46.64147644,2564.2,2564.1,21.98096235]
[1747719786099,42.74162464,2564.2,2564.1,22.53096235]
[1747719786285,42.74162464,2564.2,2564.1,24.72905859]
[1747719786490,41.80648186,2564.2,2564.1,42.76060759]
[1747719786777,41.80648186,2564.2,2564.1,28.56028659]
[1747719791040,40.4038261,2564.2,2564.1,28.56028659]
[1747719791392,40.4038261,2564.2,2564.1,45.39328659]
[1747719794169,40.4038261,2564.2,2564.1,49.29329049]
[1747719794460,40.4038261,2564.2,2564.1,45.39328659]
[1747719795341,40.4038261,2564.2,2564.1,39.54928659]
[1747719795549,40.4038261,2564.2,2564.1,42.64519035]
[1747719799232,40.4038261,2564.2,2564.1,38.81396235]
[1747719799655,40.4038261,2564.2,2564.1,50.52393335]
[1747719799856,40.4038261,2564.2,2564.1,50.06832335]
[1747719800777,40.4038261,2564.2,2564.1,50.61832335]
[1747719800965,40.4038261,2564.2,2564.1,54.52068623]
[1747719803195,38.06604322,2564.2,2564.1,54.52068623]
[1747719804200,38.06604322,2564.2,2564.1,48.56674823]
[1747719810405,41.96589502,2564.2,2564.1,27.93798535]
[1747719810598,41.96589502,2564.2,2564.1,32.91096235]
[1747719810906,41.96589502,2564.2,2564.1,38.75496235]
[1747719811311,41.96589502,2564.2,2564.1,25.20596235]
[1747719811480,41.96589502,2564.2,2564.1,38.75496235]
[1747719812809,41.96589502,2564.2,2564.1,32.91096235]
[1747719813112,41.96589502,2564.2,2564.1,38.75496235]
[1747719817878,38.06604322,2564.2,2564.1,38.75496235]
[1747719818085,41.0306949,2564.2,2564.1,38.75496235]
[1747719823518,41.0306949,2564.2,2564.1,32.91096235]